Cogmind - Beta 13 @@@ ROGUE MODE // 2024.04.21 @ 21:50:18 Player: f_ Result: Destroyed by VO-8QA(R) with Subdweller Laser Performance ------------- Evolutions (0) 0 Regions Visited (3) 600 Robots Destroyed (18) 90 Value Destroyed (408) 408 Prototype IDs (0) 0 Alien Tech Used (0) 0 Bonus (0) 0 TOTAL SCORE: 1098 Bonus ------- None Cogmind --------- Core Integrity 0/250 Matter 205/300 Energy 125/125 System Corruption 0% Temperature Cool (6) Movement Walking (120) Location -10/Subcaves Parts ------- > --- POWER (1) -------- Light Ion Engine > --- PROPULSION (2) --- Aluminum Leg Aluminum Leg > --- UTILITY (2) ------ Small Storage Unit Signal Interpreter > --- WEAPON (2) ------- Subdweller Laser Rocket Launcher > --- INVENTORY (8) ---- Flight Unit Flight Unit Flight Unit Flight Unit Structural Scanner Sensor Array ECM Suite Datajack Peak State ------------ > --- POWER ------------ Light Nuclear Core > --- PROPULSION ------- Aluminum Leg Aluminum Leg > --- UTILITY ---------- Heat Sink Small Storage Unit > --- WEAPON ----------- Particle Gun Assault Rifle > --- INVENTORY -------- Ion Engine Wheel Signal Interpreter ECM Suite Small Laser [Rating: 10] Favorites ----------- Power Light Nuclear Core Engine Light Ion Engine Power Core Light Nuclear Core Propulsion Aluminum Leg Leg Aluminum Leg Wheel Wheel Utility Small Storage Unit Device ECM Suite Storage Small Storage Unit Processor Signal Interpreter Weapon Assault Rifle Energy Gun Particle Gun Energy Cannon Beam Cannon Ballistic Gun Assault Rifle Launcher Rocket Launcher Build | -11 -10 -10 -10 ------- Run | Yrd Mat Min Sub Slots Evolved . | . . . . Power . | . . . . Propulsion . | . . . . Utility . | . . . . Weapon . | . . . . Parts Attached 24 | . 21 2 1 Power 4 | . 3 1 . Engine 3 | . 2 1 . Core 1 | . 1 . . Reactor . | . . . . Propulsion 5 | . 5 . . Treads . | . . . . Leg 4 | . 4 . . Wheel 1 | . 1 . . Hover . | . . . . Flight . | . . . . Utility 7 | . 7 . . Device 3 | . 3 . . Storage 3 | . 3 . . Processor 1 | . 1 . . Hackware . | . . . . Protection . | . . . . Artifact . | . . . . Weapon 8 | . 6 1 1 Energy Gun 4 | . 3 . 1 Energy Cannon 1 | . 1 . . Ballistic Gun 2 | . 2 . . Ballistic Cannon . | . . . . Launcher 1 | . . 1 . Special Weapon . | . . . . Impact Weapon . | . . . . Slashing Weapon . | . . . . Piercing Weapon . | . . . . Special Melee Weapon . | . . . . Unidentified Prototypes . | . . . . Parts Lost 5 | . 4 1 . Power 2 | . 1 1 . Propulsion 1 | . 1 . . Utility . | . . . . Weapon 2 | . 2 . . Highest Loss Streak 3 | . 3 1 . To Critical Strikes . | . . . . Average Slot Usage (%) 93 | . 92 95 98 Engine 2 | . 1 2 14 Core 9 | . 11 6 . Leg 25 | . 24 28 28 Device 5 | . 8 . . Storage 13 | . 13 14 14 Processor 7 | . 4 14 14 Energy Gun 6 | . 8 . 2 Energy Cannon 7 | . 4 14 11 Ballistic Gun 9 | . 13 . . Launcher 4 | . . 13 14 Naked Turns 10 | . 10 . . Heaviest Build 17 | . 17 17 16 Greatest Support 20 | 3 20 20 20 Greatest Overweight (x) 4 | . 4 . . Average Overweight (x) . | . . . . Largest Inventory Capacity 8 | 5 8 8 8 Average Capacity 7 | 5 7 8 8 Most Carried 8 | 5 8 8 8 Average Carried 6 | 3 6 8 8 Final Capacity 8 | 5 8 8 8 Final Carried 8 | 5 8 8 8 Class Distribution -------------------- 61% | Mutant 38% | Scavenger-Mutant Dominant Class ---------------- Scavenger-Mutant | -10/Materials Mutant | -10/Mines Mutant | -10/Subcaves Resources | -11 -10 -10 -10 ----------- Run | Yrd Mat Min Sub Matter Collected 550 | 200 240 110 . Remotely . | . . . . Salvage Created 472 | . 372 95 5 Parts 33 | . 28 3 2 Haulers Intercepted 1 | . 1 . . Recyclers Shooed . | . . . . Parts Field Recycled . | . . . . Retrieved Matter . | . . . . Parts Self-Destructed . | . . . . Prevented . | . . . . Kills | -11 -10 -10 -10 ------- Run | Yrd Mat Min Sub Combat Hostiles Destroyed 20 | . 11 7 2 Guns 9 | . 9 . . Cannons 5 | . 2 3 . AOE 6 | . . 4 2 Classes Destroyed 8 | . 5 2 1 Tunneler 1 | . . 1 . Hauler 1 | . 1 . . Operator 1 | . 1 . . Watcher 1 | . 1 . . Swarmer 6 | . 6 . . Grunt 6 | . 5 1 . Subdweller 2 | . . . 2 Assembled 6 | . . 6 . Best Kill Streak 3 | . 3 3 2 Combat Bots Only 3 | . 3 3 2 Max Kills in Single Turn 2 | . 1 2 1 Gunslinging . | . . . . Exploded 2 | . . 2 1 Melee . | . . . . Uniques/NPCs Destroyed . | . . . . Combat | -11 -10 -10 -10 -------- Run | Yrd Mat Min Sub Hostile Shots Fired 98 | . 77 14 7 Missed 26 | . 22 3 1 Damage Taken 922 | . 560 211 151 Core 261 | . 145 52 64 Absorbed by Shields . | . . . . Core Remaining (%) 100 | 100 . . . Volleys Fired 73 | . 50 17 6 Largest 2 | . 2 1 1 Hottest 80 | . 80 60 33 Shots Fired 89 | . 66 17 6 Gun 51 | . 51 . . Cannon 26 | . 15 11 . Launcher 12 | . . 6 6 Special . | . . . . Kinetic 47 | . 47 . . Thermal 29 | . 18 11 . Explosive 12 | . . 6 6 Electromagnetic 1 | . 1 . . Robot Hit Streak 14 | . 14 5 4 Robot Miss Streak 4 | . 4 4 1 Penetration Max . | . . . . Secondary Targets . | . . . . Shots Hit Robots 52 | . 40 8 4 Core Hits 31 | . 18 10 3 Critical Kills . | . . . . Critical Parts Destroyed . | . . . . Critical Strikes . | . . . . Melee Attacks . | . . . . Impact . | . . . . Slashing . | . . . . Piercing . | . . . . Sneak Attacks . | . . . . Combat Hostiles . | . . . . Follow-up Attacks . | . . . . Damage Inflicted 1384 | . 513 425 446 Guns 344 | . 344 . . Cannons 304 | . 161 143 . Explosions 728 | . . 282 446 Melee . | . . . . Ramming 8 | . 8 . . Kinetic 310 | . 310 . . Thermal 338 | . 195 143 . Explosive 728 | . . 282 446 Electromagnetic . | . . . . Impact . | . . . . Slashing . | . . . . Piercing . | . . . . Highest Corruption . | . . . . Average Corruption . | . . . . Corruption Purged . | . . . . Corruption Blocked . | . . . . Overload Shots . | . . . . Overflow Damage 55 | . . 55 . Projectiles . | . . . . Explosions 55 | . . 55 . Melee . | . . . . Knockbacks . | . . . . Impact . | . . . . Kinetic . | . . . . Secondary . | . . . . Self-Inflicted Damage 72 | . 2 49 21 Shots 2 | . . 1 1 Rammed 1 | . 1 . . Targets Rammed 2 | . 2 . . Kicked 1 | . 1 . . Crushed . | . . . . Highest Temperature 104 | . 104 78 . Average Temperature 28 | . 29 27 . Received Heat Transfer 219 | . 195 12 12 Siege Activations . | . . . . Robots Corrupted . | . . . . Combat Hostiles . | . . . . Parts Fried . | . . . . Impact Corruptions . | . . . . Robots Melted . | . . . . Combat Hostiles . | . . . . Parts Melted . | . . . . Heat Transferred 704 | . 408 296 . Parts Sabotaged . | . . . . Parts Stolen . | . . . . Parts Stripped . | . . . . Power Chain Reactions . | . . . . Alert | -11 -10 -10 -10 ------- Run | Yrd Mat Min Sub Peak Influence 195 | . 195 132 . Initial 42 | . . 42 . Average 104 | . 116 79 . Maximum Alert Level . | . . . . Low Security (%) 100 | 100 100 100 . Level 1 . | . . . . Level 2 . | . . . . Level 3 . | . . . . Level 4 . | . . . . Level 5 . | . . . . High Security . | . . . . Max Security . | . . . . Squads Dispatched 4 | . 4 . . Investigation 3 | . 3 . . Extermination . | . . . . Reinforcement 1 | . 1 . . Assault . | . . . . Garrison . | . . . . Intercept . | . . . . Searches Triggered . | . . . . Construction Impeded . | . . . . Haulers Reinforced . | . . . . Active Scanning Responses . | . . . . Cargo Convoy Interrupts . | . . . . Stealth | -11 -10 -10 -10 --------- Run | Yrd Mat Min Sub Distress Signals 4 | . 2 2 . Communications Jammed . | . . . . Distress Signals . | . . . . Times Spotted 47 | . 35 9 3 Peak Tracking Total 5 | . 5 2 2 Tactical Retreats 11 | . 8 3 . Traps | -11 -10 -10 -10 ------- Run | Yrd Mat Min Sub Traps Triggered 2 | . 2 . . Indirectly . | . . . . Trap Hack Attempts . | . . . . Triggered . | . . . . Disarmed . | . . . . Reprogrammed . | . . . . Reused . | . . . . Traps Extracted . | . . . . Installed . | . . . . Triggered . | . . . . Machines | -11 -10 -10 -10 ---------- Run | Yrd Mat Min Sub Machines Disabled 1 | . 1 . . Max in Single Turn 1 | . 1 . . Machines Repaired . | . . . . Machines Dismantled . | . . . . Machines Sabotaged . | . . . . Overloaded Fab Kills . | . . . . Hacking | -11 -10 -10 -10 --------- Run | Yrd Mat Min Sub Machines Accessed 4 | . 4 . . Terminals 3 | . 3 . . Fabricators . | . . . . Repair Stations . | . . . . Recycling Units 1 | . 1 . . Scanalyzers . | . . . . Garrison Access . | . . . . Total Hacks 14 | . 14 . . Successful 6 | . 6 . . Failed 8 | . 8 . . Catastrophic 2 | . 2 . . Database Lockouts . | . . . . Manual 13 | . 13 . . Terminals 13 | . 13 . . Fabricators . | . . . . Repair Stations . | . . . . Recycling Units 1 | . 1 . . Scanalyzers . | . . . . Garrison Access . | . . . . Terminal Hacks 4 | . 4 . . Robot Analysis 2 | . 2 . . Alert Level 1 | . 1 . . Recall Investigation 1 | . 1 . . Fabricator Hacks . | . . . . Repair Station Hacks . | . . . . Recycling Unit Hacks 1 | . 1 . . Retrieve Components 1 | . 1 . . Scanalyzer . | . . . . Garrison Access Hacks . | . . . . Unauthorized Hacks 1 | . 1 . . Terminals 1 | . 1 . . Botnet 1 | . 1 . . Fabricators . | . . . . Repair Stations . | . . . . Recycling Units . | . . . . Scanalyzers . | . . . . Garrison Access . | . . . . Data Cores Recovered . | . . . . Used . | . . . . Hacking Detections 4 | . 4 . . Full Trace Events 1 | . 1 . . Feedback Events . | . . . . Feedback Blocked . | . . . . Robot Schematics Acquired . | . . . . Robots Built . | . . . . Authchips . | . . . . Time . | . . . . Total Robot Build Rating . | . . . . Part Schematics Acquired . | . . . . Parts Built . | . . . . Authchips . | . . . . Time . | . . . . Total Part Build Rating . | . . . . Parts Repaired . | . . . . Time . | . . . . Parts Recycled . | . . . . Recycled Matter . | . . . . Retrieved Matter . | . . . . Retrieved Components 2 | . 2 . . Parts Scanalyzed . | . . . . Part Schematics Acquired . | . . . . Parts Damaged . | . . . . Bothacking | -11 -10 -10 -10 ------------ Run | Yrd Mat Min Sub Used RIF Installer . | . . . . Robots Hacked . | . . . . Non-combat . | . . . . Combat . | . . . . Robot Hacks Applied . | . . . . Relay Couplers Released . | . . . . Fabnet Peak Effective % . | . . . . Robots Rewired . | . . . . Allies Hacked . | . . . . Hacks Repelled . | . . . . Allies | -11 -10 -10 -10 -------- Run | Yrd Mat Min Sub Total Allies . | . . . . Largest Group . | . . . . Highest-Rated Group . | . . . . Highest-Rated Ally . | . . . . Total Orders . | . . . . Ally Attacks . | . . . . Total Damage . | . . . . Kills . | . . . . Allies Corrupted . | . . . . Allies Melted . | . . . . Intel | -11 -10 -10 -10 ------- Run | Yrd Mat Min Sub Robot Analysis Total 2 | . 2 . . Derelict Logs Recovered 1 | . . 1 . Drone Launches . | . . . . Drone Recoveries . | . . . . Exploration | -11 -10 -10 -10 ------------- Run | Yrd Mat Min Sub Turns Passed 1878 | 40 1252 437 149 Spaces Moved 1247 | 69 805 262 111 Core 132 | 69 63 . . Treads . | . . . . Legs 1102 | . 729 262 111 Wheels 13 | . 13 . . Hover . | . . . . Flight . | . . . . Fastest Speed 50 | 50 50 120 120 Average Speed 115 | 50 118 120 120 Slowest Speed 250 | 50 250 120 120 Overloaded Moves . | . . . . Propulsion Burnouts . | . . . . Robots Hopped . | . . . . Cave-ins Triggered . | . . . . Exploration Rate (%) 36 | 3 82 50 9 Regions Visited 3 Branch Regions 2 Pre-discovered Areas . | . . . . Known Exits Taken 2 | . 1 1 . Unknown Exits Taken 1 | 1 . . . Scrap Searched . | . . . . Spaces Dug . | . . . . Terrain Destroyed 89 | . . 56 33 Melee . | . . . . Projectile . | . . . . AOE 89 | . . 56 33 Terrain Rammed . | . . . . Walls Destroyed . | . . . . Machines Disabled . | . . . . Actions | -11 -10 -10 -10 --------- Run | Yrd Mat Min Sub Total 1598 | 73 1037 367 121 Wait 220 | . 132 86 2 Move 1244 | 68 804 261 111 Hop . | . . . . Pick Up 20 | 5 15 . . Fast Attach 10 | . 7 2 1 Attach 8 | . 8 . . Detach 2 | . 2 . . Swap 6 | . 6 . . Drop 13 | . 11 1 1 Fire 73 | . 50 17 6 Melee . | . . . . Ram 1 | . 1 . . Kick 1 | . 1 . . Crush . | . . . . Escape Stasis . | . . . . Rewire . | . . . . Trap . | . . . . Miscellaneous . | . . . . Route ------- -11/Scrapyard -10/Materials (discovered 3 exits: *Mat x2 / *Min) -10/Mines -10/Subcaves History --------- Turn | Location | Event 6 | -11/Scrapyard | Discovered new exit (range 16) 41 | -11/Scrapyard | Entered Materials 162 | -10/Materials | Lost 3 parts (1p1n1w) 509 | -10/Materials | Build established: Scavenger-Mutant 852 | -10/Materials | Discovered new exit (range 5) 859 | -10/Materials | Identified exit to Materials 964 | -10/Materials | Core integrity fell below 50% 1181 | -10/Materials | Build established: Mutant 1249 | -10/Materials | Discovered exit to Materials (range 8) 1264 | -10/Materials | Discovered new exit (range 14) 1292 | -10/Materials | Identified exit to Mines 1293 | -10/Materials | Entered Mines 1308 | -10/Mines | Received a Rocket Launcher from a helpful Derelict 1422 | -10/Mines | Assembled infested the area 1534 | -10/Mines | Identified exit to Subcaves 1730 | -10/Mines | Entered Subcaves 1838 | -10/Subcaves | Core integrity fell below 20% 1879 | -10/Subcaves | Destroyed by VO-8QA(R) with Subdweller Laser Last Messages --------------- 01638_ Acquired 13 matter. 01643_ Acquired Lgt. Ion Engine. 01649_ Acquired 7 matter. 01651_ Extracted 3 matter. 01665_ as-45638 destroyed. 01699_ T-07 Excavator is excavating. 01720_ T-07 Excavator destroyed. 01727_ Acquired 3 matter. LOCATION=SUBCAVES AMBIENT_HEAT=-10 GOAL=ESCAPE 01767_ F6-QFU(u) builds Twisted Machinery. 01841_ JU-J1N(R) destroyed. 01843_ Destroyed Scrap Shield. 01845_ 05-G1Y(R) destroyed. 01847_ Dropped Beam Cannon. 01848_ Subatomizers dissect the Sub. Laser. 01850_ The unstable cave ceiling collapses. 01856_ Acquired Sub. Laser. 01873_ Subatomizers dissect the Beam Cannon. Map ----- +----------------------------------------------------+ | ????????????????#"""##????????? ??????????? | | ????????????????#"" ####????? #???????????? | | ????????????????## ### ##???# ##??????????? | | ????????????????# " ##?# ##?????????? | | ???????????????### """" ## ## ##????? | | ??????????????## #????? | | ??????????????# #???????? | | ??????????????# ### " ##????????? | | ??????????????# # ## " ##?????????? | | ??????????????## #### ###???" #?????????? | | ???????????????###?##" # ##?????? #????????? | | ????????????????####""# #?????????????????? | | ????????????????# ###""# ##?????????????????? | | ????????????###?#] """ "## #?????????????? | | ????????????#< ## "" ??????????? | | ????????????#"$ #"" # ## #????????? | | ????????????# #"###?#??????????????? | | ????????????#" R """#?????????????????? | | ????????????&" " ##?????????????????? | | ????????????### & # ##??????????????????? | | ???????????????# & ##???????????????????? | | ??????????????## #???????????????????? | | ??????????????#" ##???????????????????? | | ??????????????#"" ###????????????????????? | | ??????????????##"" ##????????????????????? | | ???????????????#""" @ #????????????????????? | | ???????????????#" " ##????????????????????? | | ??????????????# #####?????????????????????? | | ??????????????# ??????????????????????????? | | ??????????????# ??????????????????????????? | | ??????????????# ??????????????????????????? | | ??????????????### ??????????????????????????? | | ????????????????##??????????????????????????? | | ????????????????????????????????????????????? | | ????????????????????????????????????????????? | | ????????????????????????????????????????????? | | ????????????????????????????????????????????? | | ????????????????????????????????????????????? | | ????????????????????????????????????????????? | | ????????????????????????????????????????????? | | ????????????????????????????????????????????? | | ????????????????????????????????????????????? | | ????????????????????????????????????????????? | | ????????????????????????????????????????????? | | ????????????????????????????????????????????? | | ????????????????????????????????????????????? | | ????????????????????????????????????????????? | | ????????????????????????????????????????????? | | ????????????????????????????????????????????? | | ????????????????????????????????????????????? | +----------------------------------------------------+ Best States ------------- Heat Dissipation 35 Energy Generation 14 Energy Capacity 250 Matter Stores 300 Matter Capacity 300 Sight Range 16 Terrain Scan Density 10 ECM Strength 1 Evasion (%) 55 Item Schematics ----------------- None Robot Schematics ------------------ None Fabricated ------------ Nothing Alien Tech Used ----------------- None Achievements -------------- None Challenges ------------ None Game ------ Seed TrackerTerrainScanner Manual? 0 Play Time 00:22:38 Cumulative 203.8 hours Start 2024.04.15 @ 16:56:57 End 2024.04.21 @ 21:50:18 Sessions 2 Manual Loads 0 Difficulty Rogue Special Mode None Game No. 174 Rogue 166 Adventurer 0 Explorer 8 Win Type - Total 7 Types 4/0/1/2/0/0/0/0/0 Lore% 58 Gallery% 67 Achievement% 53 Wizard Run 0 Options --------- Layout 0 ASCII 0 Keyboard 0 Movement Mouse Keybinds 0 Fullscreen 2 Font 36/Terminus Map View 83x50 Zoom Use 0% Tactical HUD 1 Map Filters NONE Filters NONE Steam 1 RUN: 6ba49bd3-7797-44e6-9fdb-61f92c731733